Workbook

Sheet 汇总表
A2: 2025年全县精简退职老职工生活救济费1-9月份补发、10月份发放统计表
E3: 单位：人 元
A4: 单位：人、元
A5: 乡 镇 | B5: 人 数 | C5: 金 额 | D5: 乡 镇 | E5: 人 数 | F5: 金 额
A6: 1.孝坪镇 | B6: 17 | C6: =B6*550 -> 9350.00 | D6: 13.罗子山瑶族乡 | E6: 0 | F6: =E6*550 -> 0.00
A7: 2.大水田乡 | B7: 3 | C7: =B7*550 -> 1650.00 | D7: 14.辰阳镇 | E7: 17 | F7: =E7*550 -> 9350.00
A8: 3.黄溪口镇 | B8: 3 | C8: 1650.00 | D8: 15.柿溪乡 | E8: 2 | F8: 1100.00
A9: 4.潭湾镇 | B9: 34 | C9: 18700.00 | D9: 16.桥头溪乡 | E9: 5 | F9: 2750.00
A10: 5.锦滨镇 | B10: 11 | C10: 6050.00 | D10: 17.龙泉岩乡 | E10: 8 | F10: 4400.00
A11: 6.船溪乡 | B11: 3 | C11: 1650.00 | D11: 18.上蒲溪瑶族乡 | E11: 1 | F11: 550.00
A12: 7.火马冲镇 | B12: 19 | C12: 10450.00 | D12: 19.长田湾乡 | E12: 2 | F12: 1100.00
A13: 8.后塘瑶族乡 | B13: 2 | C13: 1100.00 | D13: 20.田湾镇 | E13: 3 | F13: 1650.00
A14: 9.安坪镇 | B14: 20 | C14: 11000.00 | D14: 21.小龙门乡 | E14: 5 | F14: 2750.00
A15: 10.修溪镇 | B15: 8 | C15: 4400.00 | D15: 22.苏木溪瑶族乡 | E15: 0 | F15: 0.00
A16: 11.龙头庵乡 | B16: 10 | C16: 5500.00 | D16: 23.谭家场乡 | E16: 0 | F16: 0.00
A17: 12.仙人湾瑶族乡 | B17: 8 | C17: 4400.00
A18: 小 计 | B18: =SUM(B6:B17) -> 138 | C18: =SUM(C6:C17) -> 75900.00 | E18: =SUM(E6:E17) -> 43 | F18: =SUM(F6:F17) -> 23650.00
A19: 合 计 | E19: =B18+E18 -> 181 | F19: =C18+F18 -> 99550.00
A21: 制表： 审核： 审批：

Sheet 花名册
A1: 2025年全县精简退职老职工生活救济费1-9月份补发、10月份发放统计表
A3: 单位名称 | B3: 姓 名 | C3: 编号 | D3: 性别 | E3: 住 址 | F3: 人口 | G3: 补发金额元 | H3: 10月发放金额元 | I3: 合计元 | J3: 备注
A4: 1.孝坪镇 | B4: 胡远靠 | C4: 1 | D4: 男 | E4: 球岔村二组 | F4: 1 | G4: 450 | H4: 100 | I4: 550 | J4: 精简补发1-9月份
B5: 刘席珍 | C5: 2 | D5: 女 | E5: 孝矿社区一组 | F5: 1 | G5: 450 | H5: 100 | I5: 550 | J5: 精简补发1-9月份
B6: 姚慧如 | C6: 3 | D6: 女 | E6: 方田村六组 | F6: 1 | G6: 450 | H6: 100 | I6: 550 | J6: 精简补发1-9月份
B7: 李育胜 | C7: 4 | D7: 男 | E7: 古寨村五组 | F7: 1 | G7: 450 | H7: 100 | I7: 550 | J7: 精简补发1-9月份
B8: 姚祖金 | C8: 5 | D8: 男 | E8: 球岔村七组 | F8: 1 | G8: 450 | H8: 100 | I8: 550 | J8: 精简补发1-9月份
B9: 李圣兵 | C9: 6 | D9: 男 | E9: 罗依溪村一组 | F9: 1 | G9: 450 | H9: 100 | I9: 550 | J9: 精简补发1-9月份
B10: 向景宣 | C10: 7 | D10: 男 | E10: 塘里村一组 | F10: 1 | G10: 450 | H10: 100 | I10: 550 | J10: 精简补发1-9月份
B11: 李会方 | C11: 8 | D11: 男 | E11: 罗依溪村四组 | F11: 1 | G11: 450 | H11: 100 | I11: 550 | J11: 精简补发1-9月份
B12: 刘洪斌 | C12: 9 | D12: 女 | E12: 江东村十七组 | F12: 1 | G12: 450 | H12: 100 | I12: 550 | J12: 精简补发1-9月份
B13: 龙翠香 | C13: 10 | D13: 女 | E13: 孝矿社区二组 | F13: 1 | G13: 450 | H13: 100 | I13: 550 | J13: 精简补发1-9月份
B14: 田方兴 | C14: 11 | D14: 男 | E14: 千里坪村六组 | F14: 1 | G14: 450 | H14: 100 | I14: 550 | J14: 精简补发1-9月份
B15: 李自学 | C15: 12 | D15: 男 | E15: 古寨村五组 | F15: 1 | G15: 450 | H15: 100 | I15: 550 | J15: 精简补发1-9月份
B16: 向会如 | C16: 13 | D16: 女 | E16: 塘里村六组 | F16: 1 | G16: 450 | H16: 100 | I16: 550 | J16: 精简补发1-9月份
B17: 杨仕玉 | C17: 14 | D17: 男 | E17: 板桥村三组 | F17: 1 | G17: 450 | H17: 100 | I17: 550 | J17: 精简补发1-9月份
B18: 娄世朋 | C18: 15 | D18: 男 | E18: 中溪村六组 | F18: 1 | G18: 450 | H18: 100 | I18: 550 | J18: 精简补发1-9月份
B19: 肖守俊 | C19: 16 | D19: 男 | E19: 坪里村八组 | F19: 1 | G19: 450 | H19: 100 | I19: 550 | J19: 精简补发1-9月份
B20: 涂才福 | C20: 17 | D20: 男 | E20: 中溪村一组 | F20: 1 | G20: 450 | H20: 100 | I20: 550 | J20: 精简补发1-9月份
A21: 小计 | C21: 17 | G21: =SUM(G4:G20) -> 7650 | H21: =SUM(H4:H20) -> 1700 | I21: =SUM(I4:I20) -> 9350
A23: 2.大水田乡 | B23: 贺秀英 | C23: 1 | D23: 男 | E23: 大水田村4组 | F23: 1 | G23: 450 | H23: 100 | I23: 550 | J23: 精简补发1-9月份
B24: 雷后亮 | C24: 2 | D24: 男 | E24: 垅山村九组 | F24: 1 | G24: 450 | H24: 100 | I24: 550 | J24: 精简补发1-9月份
B25: 刘明生 | C25: 3 | D25: 男 | E25: 中庄村7组 | F25: 1 | G25: 450 | H25: 100 | I25: 550 | J25: 精简补发1-9月份
A26: 小计 | C26: 3 | G26: =SUM(G23:G25) -> 1350 | H26: =SUM(H23:H25) -> 300 | I26: =SUM(I23:I25) -> 1650
A28: 3.黄溪口镇 | B28: 廖家寿 | C28: 1 | D28: 男 | E28: 芙蓉村1组 | F28: 1 | G28: 450 | H28: 100 | I28: 550 | J28: 精简补发1-9月份
B29: 米贤伍 | C29: 2 | D29: 男 | E29: 芙蓉村14组 | F29: 1 | G29: 450 | H29: 100 | I29: 550 | J29: 精简补发1-9月份
B30: 米贤楚 | C30: 3 | D30: 男 | E30: 芙蓉村15组 | F30: 1 | G30: 450 | H30: 100 | I30: 550 | J30: 精简补发1-9月份
A31: 小计 | C31: 3 | G31: =SUM(G28:G30) -> 1350 | H31: =SUM(H28:H30) -> 300 | I31: =SUM(I28:I30) -> 1650
A33: 4.潭湾镇 | B33: 唐先长 | C33: 1 | D33: 男 | E33: 三甲塘村5组 | F33: 1 | G33: 450 | H33: 100 | I33: 550 | J33: 精简补发1-9月份
B34: 黄溪生 | C34: 2 | D34: 男 | E34: 石牌村8组 | F34: 1 | G34: 450 | H34: 100 | I34: 550 | J34: 精简补发1-9月份
B35: 谢申发 | C35: 3 | D35: 男 | E35: 柏林村２组 | F35: 1 | G35: 450 | H35: 100 | I35: 550 | J35: 精简补发1-9月份
B36: 张圣国 | C36: 4 | D36: 男 | E36: 长坡新村2组 | F36: 1 | G36: 450 | H36: 100 | I36: 550 | J36: 精简补发1-9月份
B37: 杨兴贵 | C37: 5 | D37: 男 | E37: 麻田村4组 | F37: 1 | G37: 450 | H37: 100 | I37: 550 | J37: 精简补发1-9月份
B38: 蒋全池 | C38: 6 | D38: 男 | E38: 石牌村8组 | F38: 1 | G38: 450 | H38: 100 | I38: 550 | J38: 精简补发1-9月份
B39: 张发补 | C39: 7 | D39: 男 | E39: 西庄坪村4组 | F39: 1 | G39: 450 | H39: 100 | I39: 550 | J39: 精简补发1-9月份
B40: 李继贤 | C40: 8 | D40: 男 | E40: 报木洞村1组 | F40: 1 | G40: 450 | H40: 100 | I40: 550 | J40: 精简补发1-9月份
B41: 吴德玉 | C41: 9 | D41: 男 | E41: 西庄坪村８组 | F41: 1 | G41: 450 | H41: 100 | I41: 550 | J41: 精简补发1-9月份
B42: 李自成 | C42: 10 | D42: 男 | E42: 报木洞村7组 | F42: 1 | G42: 450 | H42: 100 | I42: 550 | J42: 精简补发1-9月份
B43: 李继兴 | C43: 11 | E43: 报木洞村4组 | F43: 1 | G43: 450 | H43: 100 | I43: 550 | J43: 精简补发1-9月份
B44: 刘寸兰 | C44: 12 | E44: 报木洞村7组 | F44: 1 | G44: 450 | H44: 100 | I44: 550 | J44: 精简补发1-9月份
B45: 唐正端 | C45: 13 | E45: 居委会1组 | F45: 1 | G45: 450 | H45: 100 | I45: 550 | J45: 精简补发1-9月份
B46: 王本秀 | C46: 14 | E46: 麻田村14组 | F46: 1 | G46: 450 | H46: 100 | I46: 550 | J46: 精简补发1-9月份
B47: 张瑞英 | C47: 15 | E47: 南庄坪村3组 | F47: 1 | G47: 450 | H47: 100 | I47: 550 | J47: 精简补发1-9月份
B48: 谭必刚 | C48: 16 | E48: 南庄坪村19组 | F48: 1 | G48: 450 | H48: 100 | I48: 550 | J48: 精简补发1-9月份
B49: 莫才友 | C49: 17 | E49: 南庄坪村3组 | F49: 1 | G49: 450 | H49: 100 | I49: 550 | J49: 精简补发1-9月份
B50: 毕应清 | C50: 18 | E50: 桥湾村11组 | F50: 1 | G50: 450 | H50: 100 | I50: 550 | J50: 精简补发1-9月份
B51: 谭寸珍 | C51: 19 | E51: 桥湾村3组 | F51: 1 | G51: 450 | H51: 100 | I51: 550 | J51: 精简补发1-9月份
B52: 付美英 | C52: 20 | E52: 桥湾村9组 | F52: 1 | G52: 450 | H52: 100 | I52: 550 | J52: 精简补发1-9月份
B53: 米世艮 | C53: 21 | E53: 三甲塘村10组 | F53: 1 | G53: 450 | H53: 100 | I53: 550 | J53: 精简补发1-9月份
B54: 欧光金 | C54: 22 | E54: 杉林村4组 | F54: 1 | G54: 450 | H54: 100 | I54: 550 | J54: 精简补发1-9月份
B55: 张世屯 | C55: 23 | E55: 石牌村5组 | F55: 1 | G55: 450 | H55: 100 | I55: 550 | J55: 精简补发1-9月份
B56: 张世森 | C56: 24 | E56: 石牌村5组 | F56: 1 | G56: 450 | H56: 100 | I56: 550 | J56: 精简补发1-9月份
B57: 张福茂 | C57: 25 | E57: 石牌村6组 | F57: 1 | G57: 450 | H57: 100 | I57: 550 | J57: 精简补发1-9月份
B58: 王妹 | C58: 26 | E58: 双桥村8组 | F58: 1 | G58: 450 | H58: 100 | I58: 550 | J58: 精简补发1-9月份
B59: 谢申友 | C59: 27 | E59: 覃家塘村17组 | F59: 1 | G59: 450 | H59: 100 | I59: 550 | J59: 精简补发1-9月份
B60: 王义昌 | C60: 28 | E60: 西庄坪村22组 | F60: 1 | G60: 450 | H60: 100 | I60: 550 | J60: 精简补发1-9月份
B61: 孙子杰 | C61: 29 | E61: 西庄坪村5组 | F61: 1 | G61: 450 | H61: 100 | I61: 550 | J61: 精简补发1-9月份
B62: 孙永必 | C62: 30 | E62: 西庄坪村6组 | F62: 1 | G62: 450 | H62: 100 | I62: 550 | J62: 精简补发1-9月份
B63: 刘元发 | C63: 31 | E63: 园家坪村6组 | F63: 1 | G63: 450 | H63: 100 | I63: 550 | J63: 精简补发1-9月份
B64: 欧永信 | C64: 32 | E64: 柞溪村10组 | F64: 1 | G64: 450 | H64: 100 | I64: 550 | J64: 精简补发1-9月份
B65: 欧兰祥 | C65: 33 | E65: 柞溪村10组 | F65: 1 | G65: 450 | H65: 100 | I65: 550 | J65: 精简补发1-9月份
B66: 龚代科 | C66: 34 | D66: 男 | E66: 王桥坪村 | F66: 1 | G66: 450 | H66: 100 | I66: 550 | J66: 精简补发1-9月份
A67: 小计 | C67: 34 | G67: =SUM(G33:G66) -> 15300 | H67: =SUM(H33:H66) -> 3400 | I67: =SUM(I33:I66) -> 18700
A69: 5.锦滨镇 | B69: 孙纯林 | C69: 1 | D69: 男 | E69: 龙头垴村十三组 | F69: 1 | G69: 450 | H69: 100 | I69: 550 | J69: 精简补发1-9月份
B70: 石美英 | C70: 2 | D70: 女 | E70: 紫金山村一组 | F70: 1 | G70: 450 | H70: 100 | I70: 550 | J70: 精简补发1-9月份
B71: 谢伯利 | C71: 3 | D71: 男 | E71: 龙头垴村十七组 | F71: 1 | G71: 450 | H71: 100 | I71: 550 | J71: 精简补发1-9月份
B72: 唐长杨 | C72: 4 | D72: 男 | E72: 石碧村六组 | F72: 1 | G72: 450 | H72: 100 | I72: 550 | J72: 精简补发1-9月份
B73: 孙叙傲 | C73: 5 | D73: 男 | E73: 石碧村七组 | F73: 1 | G73: 450 | H73: 100 | I73: 550 | J73: 精简补发1-9月份
B74: 刘凤英 | C74: 6 | D74: 女 | E74: 华中社区三组 | F74: 1 | G74: 450 | H74: 100 | I74: 550 | J74: 精简补发1-9月份
B75: 唐正生 | C75: 7 | D75: 男 | E75: 龙头垴村六组 | F75: 1 | G75: 450 | H75: 100 | I75: 550 | J75: 精简补发1-9月份
B76: 米云娥 | C76: 8 | D76: 男 | E76: 装粮埠村四组 | F76: 1 | G76: 450 | H76: 100 | I76: 550 | J76: 精简补发1-9月份
B77: 刘青秀 | C77: 9 | D77: 女 | E77: 石碧村十九组 | F77: 1 | G77: 450 | H77: 100 | I77: 550 | J77: 精简补发1-9月份
B78: 赵德占 | C78: 10 | D78: 男 | E78: 石碧村十九组 | F78: 1 | G78: 450 | H78: 100 | I78: 550 | J78: 精简补发1-9月份
B79: 金继顺 | C79: 11 | D79: 男 | E79: 紫金山村三组 | F79: 1 | G79: 450 | H79: 100 | I79: 550 | J79: 精简补发1-9月份
A80: 小计 | C80: 11 | G80: =SUM(G69:G79) -> 4950 | H80: =SUM(H69:H79) -> 1100 | I80: =SUM(I69:I79) -> 6050
A82: 6.船溪乡 | B82: 向太铁 | C82: 1 | D82: 男 | E82: 兵马冲村12组 | F82: 1 | G82: 450 | H82: 100 | I82: 550 | J82: 精简补发1-9月份
B83: 印运忠 | C83: 2 | D83: 男 | E83: 长坡村7组 | F83: 1 | G83: 450 | H83: 100 | I83: 550 | J83: 精简补发1-9月份
B84: 金宏英 | C84: 3 | D84: 女 | E84: 田头坪村4组 | F84: 1 | G84: 450 | H84: 100 | I84: 550 | J84: 精简补发1-9月份
A85: 小计 | C85: 3 | G85: =SUM(G82:G84) -> 1350 | H85: =SUM(H82:H84) -> 300 | I85: =SUM(I82:I84) -> 1650
A87: 7.火马冲镇 | B87: 郑茂均 | C87: 1 | D87: 男 | E87: 兰家湾村3组 | F87: 1 | G87: 450 | H87: 100 | I87: 550 | J87: 精简补发1-9月份
B88: 张贤进 | C88: 2 | D88: 男 | E88: 沙堆村5组 | F88: 1 | G88: 450 | H88: 100 | I88: 550 | J88: 精简补发1-9月份
B89: 张圣波 | C89: 3 | D89: 男 | E89: 火马冲村3组 | F89: 1 | G89: 450 | H89: 100 | I89: 550 | J89: 精简补发1-9月份
B90: 陈秀富 | C90: 4 | D90: 男 | E90: 淡家坪村9组 | F90: 1 | G90: 450 | H90: 100 | I90: 550 | J90: 精简补发1-9月份
B91: 张爱华 | C91: 5 | D91: 女 | E91: 寺前居委会五组 | F91: 1 | G91: 450 | H91: 100 | I91: 550 | J91: 精简补发1-9月份
B92: 王志元 | C92: 6 | D92: 男 | E92: 淡家坪村11组 | F92: 1 | G92: 450 | H92: 100 | I92: 550 | J92: 精简补发1-9月份
B93: 万兴发 | C93: 7 | D93: 男 | E93: 郑家坪村一组 | F93: 1 | G93: 450 | H93: 100 | I93: 550 | J93: 精简补发1-9月份
B94: 郑茂晚 | C94: 8 | D94: 男 | E94: 兰家湾村七组 | F94: 1 | G94: 450 | H94: 100 | I94: 550 | J94: 精简补发1-9月份
B95: 杨好珍 | C95: 9 | D95: 男 | E95: 火马冲村五组 | F95: 1 | G95: 450 | H95: 100 | I95: 550 | J95: 精简补发1-9月份
B96: 张理贵 | C96: 10 | D96: 男 | E96: 火马冲村六组 | F96: 1 | G96: 450 | H96: 100 | I96: 550 | J96: 精简补发1-9月份
B97: 黄八妹 | C97: 11 | D97: 女 | E97: 火马冲居委会六组 | F97: 1 | G97: 450 | H97: 100 | I97: 550 | J97: 精简补发1-9月份
B98: 刘运文 | C98: 12 | D98: 男 | E98: 大桥村八组 | F98: 1 | G98: 450 | H98: 100 | I98: 550 | J98: 精简补发1-9月份
B99: 胡名题 | C99: 13 | D99: 男 | E99: 万寿村十一组 | F99: 1 | G99: 450 | H99: 100 | I99: 550 | J99: 精简补发1-9月份
B100: 姚源忠 | C100: 14 | D100: 男 | E100: 兴隆村三组 | F100: 1 | G100: 450 | H100: 100 | I100: 550 | J100: 精简补发1-9月份
B101: 谭世站 | C101: 15 | D101: 男 | E101: 柑子园村十三组 | F101: 1 | G101: 450 | H101: 100 | I101: 550 | J101: 精简补发1-9月份
B102: 龚开海 | C102: 16 | D102: 男 | E102: 山岳坡村十组 | F102: 1 | G102: 450 | H102: 100 | I102: 550 | J102: 精简补发1-9月份
B103: 刘光泽 | C103: 17 | D103: 男 | E103: 凉水井村四组 | F103: 1 | G103: 450 | H103: 100 | I103: 550 | J103: 精简补发1-9月份
B104: 陈胜秀 | C104: 18 | D104: 女 | E104: 寺前居委会五组 | F104: 1 | G104: 450 | H104: 100 | I104: 550 | J104: 精简补发1-9月份
B105: 张珍生 | C105: 19 | D105: 女 | E105: 寺前居委会五组 | F105: 1 | G105: 450 | H105: 100 | I105: 550 | J105: 精简补发1-9月份
A106: 小计 | C106: 19 | G106: =SUM(G87:G105) -> 8550 | H106: =SUM(H87:H105) -> 1900 | I106: =SUM(I87:I105) -> 10450
A108: 8.后塘乡 | B108: 舒大法 | C108: 1 | D108: 男 | E108: 前塘村8组 | F108: 1 | G108: 450 | H108: 100 | I108: 550 | J108: 精简补发1-9月份
B109: 魏臣社 | C109: 2 | D109: 男 | E109: 莲花村9组 | F109: 1 | G109: 450 | H109: 100 | I109: 550 | J109: 精简补发1-9月份
A110: 小计 | C110: 2 | G110: =SUM(G108:G109) -> 900 | H110: =SUM(H108:H109) -> 200 | I110: =SUM(I108:I109) -> 1100
A112: 9.安坪镇 | B112: 杨通全 | C112: 1 | D112: 男 | E112: 王家洲七组 | F112: 1 | G112: 450 | H112: 100 | I112: 550 | J112: 精简补发1-9月份
B113: 周白娥 | C113: 2 | D113: 女 | E113: 石马湾村九组 | F113: 1 | G113: 450 | H113: 100 | I113: 550 | J113: 精简补发1-9月份
B114: 余绍堂 | C114: 3 | D114: 男 | E114: 鸡鸣溪村六组 | F114: 1 | G114: 450 | H114: 100 | I114: 550 | J114: 精简补发1-9月份
B115: 谢申银 | C115: 4 | D115: 男 | E115: 鸡鸣溪村十五组 | F115: 1 | G115: 450 | H115: 100 | I115: 550 | J115: 精简补发1-9月份
B116: 郑运妹 | C116: 5 | D116: 女 | E116: 九岩坪村十一组 | F116: 1 | G116: 450 | H116: 100 | I116: 550 | J116: 精简补发1-9月份
B117: 刘满娥 | C117: 6 | D117: 女 | E117: 安坪村五组 | F117: 1 | G117: 450 | H117: 100 | I117: 550 | J117: 精简补发1-9月份
B118: 欧清玉 | C118: 7 | D118: 女 | E118: 蛮田垅村八组 | F118: 1 | G118: 450 | H118: 100 | I118: 550 | J118: 精简补发1-9月份
B119: 向秀贵 | C119: 8 | D119: 男 | E119: 蛮田垅村八组 | F119: 1 | G119: 450 | H119: 100 | I119: 550 | J119: 精简补发1-9月份
B120: 杨昌松 | C120: 9 | D120: 男 | E120: 蒋家坪村一组 | F120: 1 | G120: 450 | H120: 100 | I120: 550 | J120: 精简补发1-9月份
B121: 郑方俭 | C121: 10 | D121: 男 | E121: 九岩坪村八组 | F121: 1 | G121: 450 | H121: 100 | I121: 550 | J121: 精简补发1-9月份
B122: 欧清平 | C122: 11 | D122: 男 | E122: 东冲湾村十八组 | F122: 1 | G122: 450 | H122: 100 | I122: 550 | J122: 精简补发1-9月份
B123: 刘圣云 | C123: 12 | D123: 男 | E123: 石马湾村一组 | F123: 1 | G123: 450 | H123: 100 | I123: 550 | J123: 精简补发1-9月份
B124: 刘明文 | C124: 13 | D124: 男 | E124: 石马湾村七组 | F124: 1 | G124: 450 | H124: 100 | I124: 550 | J124: 精简补发1-9月份
B125: 滕树胜 | C125: 14 | D125: 男 | E125: 辛木湾村四组 | F125: 1 | G125: 450 | H125: 100 | I125: 550 | J125: 精简补发1-9月份
B126: 向玉方 | C126: 15 | D126: 男 | E126: 辛木湾村七组 | F126: 1 | G126: 450 | H126: 100 | I126: 550 | J126: 精简补发1-9月份
B127: 钟金爱 | C127: 16 | D127: 女 | E127: 辛木湾村二组 | F127: 1 | G127: 450 | H127: 100 | I127: 550 | J127: 精简补发1-9月份
B128: 周福来 | C128: 17 | D128: 男 | E128: 深冲湾村九组 | F128: 1 | G128: 450 | H128: 100 | I128: 550 | J128: 精简补发1-9月份
B129: 简满寸 | C129: 18 | D129: 女 | E129: 红敏村一组 | F129: 1 | G129: 450 | H129: 100 | I129: 550 | J129: 精简补发1-9月份
B130: 王昌良 | C130: 19 | D130: 男 | E130: 红敏村十组 | F130: 1 | G130: 450 | H130: 100 | I130: 550 | J130: 精简补发1-9月份
B131: 钟芳玉 | C131: 20 | D131: 女 | E131: 翁鸡坪村三组 | F131: 1 | G131: 450 | H131: 100 | I131: 550 | J131: 精简补发1-9月份
A132: 小计 | C132: 20 | G132: =SUM(G112:G131) -> 9000 | H132: =SUM(H112:H131) -> 2000 | I132: =SUM(I112:I131) -> 11000
A134: 10.修溪镇 | B134: 周秀英 | C134: 1 | D134: 女 | E134: 荞子湾村五组 | F134: 1 | G134: 450 | H134: 100 | I134: 550 | J134: 精简补发1-9月份
B135: 许章礼 | C135: 2 | D135: 男 | E135: 黄埠村五组 | F135: 1 | G135: 450 | H135: 100 | I135: 550 | J135: 精简补发1-9月份
B136: 刘明来 | C136: 3 | D136: 男 | E136: 木洲村八组 | F136: 1 | G136: 450 | H136: 100 | I136: 550 | J136: 精简补发1-9月份
B137: 欧阳兴玉 | C137: 4 | D137: 男 | E137: 木洲村七组 | F137: 1 | G137: 450 | H137: 100 | I137: 550 | J137: 精简补发1-9月份
B138: 万远六 | C138: 5 | D138: 男 | E138: 万家垴村六组 | F138: 1 | G138: 450 | H138: 100 | I138: 550 | J138: 精简补发1-9月份
B139: 余致平 | C139: 6 | D139: 男 | E139: 黄埠村三组 | F139: 1 | G139: 450 | H139: 100 | I139: 550 | J139: 精简补发1-9月份
B140: 欧阳安家 | C140: 7 | D140: 男 | E140: 木洲村四组 | F140: 1 | G140: 450 | H140: 100 | I140: 550 | J140: 精简补发1-9月份
B141: 欧阳吕黑 | C141: 8 | D141: 男 | E141: 木洲村五组 | F141: 1 | G141: 450 | H141: 100 | I141: 550 | J141: 精简补发1-9月份
A142: 小计 | C142: 8 | G142: =SUM(G134:G141) -> 3600 | H142: =SUM(H134:H141) -> 800 | I142: =SUM(I134:I141) -> 4400
A144: 11.龙头庵乡 | B144: 米长生 | C144: 1 | D144: 男 | E144: 塘冲村2组 | F144: 1 | G144: 450 | H144: 100 | I144: 550 | J144: 精简补发1-9月份
B145: 米久先 | C145: 2 | D145: 男 | E145: 石溪口村8组 | F145: 1 | G145: 450 | H145: 100 | I145: 550 | J145: 精简补发1-9月份
B146: 刘景发 | C146: 3 | D146: 男 | E146: 戴家坪村10组 | F146: 1 | G146: 450 | H146: 100 | I146: 550 | J146: 精简补发1-9月份
B147: 米久全 | C147: 4 | D147: 男 | E147: 龙头庵村4组 | F147: 1 | G147: 450 | H147: 100 | I147: 550 | J147: 精简补发1-9月份
B148: 肖典飞 | C148: 5 | D148: 男 | E148: 龙头庵村1组 | F148: 1 | G148: 450 | H148: 100 | I148: 550 | J148: 精简补发1-9月份
B149: 米先保 | C149: 6 | D149: 男 | E149: 中溪口村5组 | F149: 1 | G149: 450 | H149: 100 | I149: 550 | J149: 精简补发1-9月份
B150: 肖从林 | C150: 7 | D150: 男 | E150: 雪峰村10组 | F150: 1 | G150: 450 | H150: 100 | I150: 550 | J150: 精简补发1-9月份
B151: 尹德录 | C151: 8 | D151: 男 | E151: 雪峰村1组 | F151: 1 | G151: 450 | H151: 100 | I151: 550 | J151: 精简补发1-9月份
B152: 刘景龙 | C152: 9 | D152: 男 | E152: 大村村23组 | F152: 1 | G152: 450 | H152: 100 | I152: 550 | J152: 精简补发1-9月份
B153: 米久顶 | C153: 10 | D153: 男 | E153: 龙头庵村16组 | F153: 1 | G153: 450 | H153: 100 | I153: 550 | J153: 精简补发1-9月份
A154: 小计 | C154: 10 | G154: =SUM(G144:G153) -> 4500 | H154: =SUM(H144:H153) -> 1000 | I154: =SUM(I144:I153) -> 5500
A156: 12.仙人湾乡 | B156: 李泽有 | C156: 1 | D156: 男 | E156: 溪台村六组 | F156: 1 | G156: 450 | H156: 100 | I156: 550 | J156: 精简补发1-9月份
B157: 肖守伍 | C157: 2 | D157: 男 | E157: 高鼓塘村二组 | F157: 1 | G157: 450 | H157: 100 | I157: 550 | J157: 精简补发1-9月份
B158: 包昌金 | C158: 3 | D158: 男 | E158: 布村五组 | F158: 1 | G158: 450 | H158: 100 | I158: 550 | J158: 精简补发1-9月份
B159: 米贤柏 | C159: 4 | D159: 男 | E159: 布村四组 | F159: 1 | G159: 450 | H159: 100 | I159: 550 | J159: 精简补发1-9月份
B160: 米仁望 | C160: 5 | D160: 男 | E160: 布村四组 | F160: 1 | G160: 450 | H160: 100 | I160: 550 | J160: 精简补发1-9月份
B161: 汪克周 | C161: 6 | D161: 男 | E161: 浅水村七组 | F161: 1 | G161: 450 | H161: 100 | I161: 550 | J161: 精简补发1-9月份
B162: 吕昌球 | C162: 7 | D162: 男 | E162: 龙呼溪村四组 | F162: 1 | G162: 450 | H162: 100 | I162: 550 | J162: 精简补发1-9月份
B163: 汪克兵 | C163: 8 | D163: 男 | E163: 罗家坪村一组 | F163: 1 | G163: 450 | H163: 100 | I163: 550 | J163: 精简补发1-9月份
A164: 小计 | C164: 8 | G164: =SUM(G156:G163) -> 3600 | H164: =SUM(H156:H163) -> 800 | I164: =SUM(I156:I163) -> 4400
A166: 13.罗子山乡 | B166: 0
A167: 小计 | C167: 0 | G167: 0
A169: 14.辰阳镇 | B169: 程光书 | C169: 1 | D169: 男 | E169: 锦岩村二组 | F169: 1 | G169: 450 | H169: 100 | I169: 550 | J169: 精简补发1-9月份
B170: 龚玉兰 | C170: 2 | D170: 女 | E170: 柳树湾一组 | F170: 1 | G170: 450 | H170: 100 | I170: 550 | J170: 精简补发1-9月份
B171: 罗桂香 | C171: 3 | D171: 女 | E171: 柘坪一组 | F171: 1 | G171: 450 | H171: 100 | I171: 550 | J171: 精简补发1-9月份
B172: 陈家友 | C172: 4 | D172: 男 | E172: 东星社区二组 | F172: 1 | G172: 450 | H172: 100 | I172: 550 | J172: 精简补发1-9月份
B173: 诸文银 | C173: 5 | D173: 男 | E173: 桑木桥村九组 | F173: 1 | G173: 450 | H173: 100 | I173: 550 | J173: 精简补发1-9月份
B174: 王英 | C174: 6 | D174: 女 | E174: 向阳村无组别 | F174: 1 | G174: 450 | H174: 100 | I174: 550 | J174: 精简补发1-9月份
B175: 刘明俊 | C175: 7 | D175: 男 | E175: 柘坪村一组 | F175: 1 | G175: 450 | H175: 100 | I175: 550 | J175: 精简补发1-9月份
B176: 罗尚满 | C176: 8 | D176: 男 | E176: 锦岩村五组 | F176: 1 | G176: 450 | H176: 100 | I176: 550 | J176: 精简补发1-9月份
B177: 朱宏求 | C177: 9 | D177: 男 | E177: 军屯村二组 | F177: 1 | G177: 450 | H177: 100 | I177: 550 | J177: 精简补发1-9月份
B178: 程光忠 | C178: 10 | D178: 男 | E178: 锦岩村二组 | F178: 1 | G178: 450 | H178: 100 | I178: 550 | J178: 精简补发1-9月份
B179: 姚元发 | C179: 11 | D179: 男 | E179: 大洑潭村一组 | F179: 1 | G179: 450 | H179: 100 | I179: 550 | J179: 精简补发1-9月份
B180: 刘杏英 | C180: 12 | D180: 女 | E180: 桑木桥村一组 | F180: 1 | G180: 450 | H180: 100 | I180: 550 | J180: 精简补发1-9月份
B181: 李福成 | C181: 13 | D181: 女 | E181: 王家坪村四组 | F181: 1 | G181: 450 | H181: 100 | I181: 550 | J181: 精简补发1-9月份
B182: 胡昌英 | C182: 14 | D182: 男 | E182: 王家坪村七组 | F182: 1 | G182: 450 | H182: 100 | I182: 550 | J182: 精简补发1-9月份
B183: 薛昌友 | C183: 15 | D183: 男 | E183: 大坪村5组 | F183: 1 | G183: 450 | H183: 100 | I183: 550 | J183: 精简补发1-9月份
B184: 杨慧英 | C184: 16 | D184: 男 | E184: 东星社区一组 | F184: 1 | G184: 450 | H184: 100 | I184: 550 | J184: 精简补发1-9月份
B185: 段玉珍 | C185: 17 | D185: 女 | E185: 东风社区2组 | F185: 1 | G185: 450 | H185: 100 | I185: 550 | J185: 精简补发1-9月份
A186: 小计 | C186: 17 | G186: =SUM(G169:G185) -> 7650 | H186: =SUM(H169:H185) -> 1700 | I186: =SUM(I169:I185) -> 9350
A188: 15.柿溪乡 | B188: 莫伯清 | C188: 1 | D188: 男 | E188: 稠木湾村1组 | F188: 1 | G188: 450 | H188: 100 | I188: 550 | J188: 精简补发1-9月份
B189: 傅圣勇 | C189: 2 | D189: 男 | E189: 傅家湾村1组 | F189: 1 | G189: 450 | H189: 100 | I189: 550 | J189: 精简补发1-9月份
A190: 小计 | C190: 2 | G190: =SUM(G188:G189) -> 900 | H190: =SUM(H188:H189) -> 200 | I190: =SUM(I188:I189) -> 1100
A192: 16.桥头溪乡 | B192: 张文光 | C192: 1 | D192: 男 | E192: 蛇垅村12组 | F192: 1 | G192: 450 | H192: 100 | I192: 550 | J192: 精简补发1-9月份
B193: 李铁哇 | C193: 2 | D193: 男 | E193: 株木冲村2组 | F193: 1 | G193: 450 | H193: 100 | I193: 550 | J193: 精简补发1-9月份
B194: 张应铁 | C194: 3 | D194: 男 | E194: 梅洲村3组 | F194: 1 | G194: 450 | H194: 100 | I194: 550 | J194: 精简补发1-9月份
B195: 李银秀 | C195: 4 | D195: 女 | E195: 大禾田村5 | F195: 1 | G195: 450 | H195: 100 | I195: 550 | J195: 精简补发1-9月份
B196: 邱道付 | C196: 5 | D196: 男 | E196: 梅洲村3组 | F196: 1 | G196: 450 | H196: 100 | I196: 550 | J196: 精简补发1-9月份
A197: 小计 | C197: 5 | G197: =SUM(G192:G196) -> 2250 | H197: =SUM(H192:H196) -> 500 | I197: =SUM(I192:I196) -> 2750
A199: 17.龙泉岩乡 | B199: 夏占秀 | C199: 1 | D199: 男 | E199: 夏家坪村5组 | F199: 1 | G199: 450 | H199: 100 | I199: 550 | J199: 精简补发1-9月份
B200: 张付县 | C200: 2 | D200: 男 | E200: 刘家坪村13组 | F200: 1 | G200: 450 | H200: 100 | I200: 550 | J200: 精简补发1-9月份
B201: 张福连 | C201: 3 | D201: 男 | E201: 刘家坪村15组 | F201: 1 | G201: 450 | H201: 100 | I201: 550 | J201: 精简补发1-9月份
B202: 梁亨菊 | C202: 4 | D202: 女 | E202: 刘家坪村15组 | F202: 1 | G202: 450 | H202: 100 | I202: 550 | J202: 精简补发1-9月份
B203: 高和英 | C203: 5 | D203: 女 | E203: 板溪村5组 | F203: 1 | G203: 450 | H203: 100 | I203: 550 | J203: 精简补发1-9月份
B204: 张玉贵 | C204: 6 | D204: 男 | E204: 店边湾村4组 | F204: 1 | G204: 450 | H204: 100 | I204: 550 | J204: 精简补发1-9月份
B205: 李春长 | C205: 7 | D205: 女 | E205: 龙泉岩村16组 | F205: 1 | G205: 450 | H205: 100 | I205: 550 | J205: 精简补发1-9月份
B206: 熊成欢 | C206: 8 | D206: 男 | E206: 金家坳村1组 | F206: 1 | G206: 450 | H206: 100 | I206: 550 | J206: 精简补发1-9月份
A207: 小计 | C207: 8 | G207: =SUM(G199:G206) -> 3600 | H207: =SUM(H199:H206) -> 800 | I207: =SUM(I199:I206) -> 4400
A209: 18.上蒲溪乡 | B209: 米栾英 | C209: 1 | D209: 女 | E209: 宝树坪村5组 | F209: 1 | G209: 450 | H209: 100 | I209: 550 | J209: 精简补发1-9月份
A210: 小计 | C210: 1 | G210: 450 | H210: 100 | I210: 550
A212: 19.长田湾乡 | B212: 刘兰寸 | C212: 1 | D212: 女 | E212: 水路坪村5组 | F212: 1 | G212: 450 | H212: 100 | I212: 550 | J212: 精简补发1-9月份
B213: 方世初 | C213: 2 | D213: 男 | E213: 长田湾村2组 | F213: 1 | G213: 450 | H213: 100 | I213: 550 | J213: 精简补发1-9月份
A214: 小计 | C214: 2 | G214: =SUM(G212:G213) -> 900 | H214: =SUM(H212:H213) -> 200 | I214: =SUM(I212:I213) -> 1100
A216: 20.田湾镇 | B216: 向英强 | C216: 1 | D216: 男 | E216: 杨梅坳村1组 | F216: 1 | G216: 450 | H216: 100 | I216: 550 | J216: 精简补发1-9月份
B217: 聂行斌 | C217: 2 | D217: 男 | E217: 杨梅坳村6组 | F217: 1 | G217: 450 | H217: 100 | I217: 550 | J217: 精简补发1-9月份
B218: 向元芝 | C218: 3 | D218: 女 | E218: 乌金村4组 | F218: 1 | G218: 450 | H218: 100 | I218: 550 | J218: 精简补发1-9月份
A219: 小计 | C219: 3 | G219: =SUM(G216:G218) -> 1350 | H219: =SUM(H216:H218) -> 300 | I219: =SUM(I216:I218) -> 1650
A221: 21.小龙门乡 | B221: 陈申满 | C221: 1 | D221: 男 | E221: 小龙门村1组 | F221: 1 | G221: 450 | H221: 100 | I221: 550 | J221: 精简补发1-9月份
... 8 more rows
